bitfinex-derivatives/quotes_SOLF0:USTF0_20241024
["timestamp","ask_amount","ask_price","bid_price","bid_amount"]
[1729785629114,1.2115,175.75,175.71,2.8474]
[1729785629115,4.0583,175.75,175.71,2.8474]
[1729785629309,4.0583,175.75,175.68,4.74]
[1729785629310,118.41895285,175.87,175.73,19.7000492]
[1729785629513,3.5649,175.86,175.74,4.74]
[1729785629707,3.5649,175.86,175.78,2.8462]
[1729785629708,2.8457,175.82,175.78,2.8462]
[1729785629911,3.5649,175.86,175.79,4.74]
[1729785630112,23.2649492,175.86,175.77,4.74]
[1729785630307,23.2649492,175.86,175.73,19.7000492]
[1729785630308,28.0049492,175.86,175.74,2.8469]
[1729785630508,28.0049492,175.86,175.7,19.7000492]
[1729785630509,19.7000492,175.83,175.7,19.7000492]
[1729785630822,8.3049,175.86,175.71,4.74]
[1729785630823,2.8474,175.72,175.71,4.74]
[1729785631115,2.8474,175.72,175.69,4.74]
[1729785631908,2.8471,175.73,175.69,7.5877]
[1729785632104,3.7493,175.77,175.69,4.74]
[1729785632704,2.8474,175.72,175.69,4.74]
[1729785632913,3.7493,175.77,175.61,3.6091]
[1729785632914,19.7000492,175.75,175.61,3.6091]
[1729785633114,19.7000492,175.75,175.62,4.74]
[1729785633417,2.8481,175.67,175.62,4.74]
[1729785633617,19.7000492,175.75,175.62,4.74]
[1729785633920,8.4893,175.77,175.62,4.74]
[1729785633921,19.7000492,175.72,175.62,4.74]
[1729785634116,24.4400492,175.72,175.62,4.74]
[1729785634416,2.8477,175.69,175.63,2.8487]
[1729785634621,24.4400492,175.72,175.62,4.74]
[1729785634812,19.7000492,175.72,175.62,4.74]
[1729785635012,2.8478,175.69,175.64,2.8484]
[1729785635420,19.7000492,175.72,175.62,4.74]
[1729785635814,2.848,175.68,175.63,2.8486]
[1729785636011,2.848,175.68,175.62,4.74]
[1729785636213,24.4400492,175.75,175.62,4.74]
[1729785636414,24.4400492,175.75,175.68,2.8478]
[1729785636415,2.8472,175.73,175.68,2.8478]
[1729785636610,24.4400492,175.75,175.62,24.4400492]
[1729785636611,24.4400492,175.75,175.66,4.74]
[1729785637017,2.8474,175.71,175.66,7.5881]
[1729785637214,3.7493,175.77,175.66,4.74]
[1729785637619,2.847,175.74,175.69,2.8476]
[1729785637818,3.7493,175.77,175.67,19.7000492]
[1729785638118,2.8466,175.76,175.71,2.8473]
[1729785638322,3.7493,175.77,175.71,7.5873]
[1729785639423,2.8469,175.75,175.71,7.5873]
[1729785640531,2.8464,175.78,175.73,2.847]
[1729785640820,1.2583,175.83,175.71,4.74]
[1729785641025,2.846,175.8,175.75,2.8466]
[1729785641220,2.846,175.8,175.75,4.74]
[1729785641616,2.8458,175.81,175.77,2.8464]
[1729785641816,1.2583,175.83,175.77,2.8464]
[1729785642020,1.2583,175.83,175.75,4.74]
[1729785642429,2.8459,175.81,175.76,2.8465]
[1729785642729,1.2583,175.83,175.75,4.74]
[1729785642929,2.8461,175.8,175.75,7.5866]
[1729785643429,2.8461,175.8,175.76,2.8466]
[1729785645026,2.8458,175.82,175.78,2.8463]
[1729785645229,2.8458,175.82,175.75,4.74]
[1729785645619,2.8458,175.82,175.77,2.8463]
[1729785645932,1.2583,175.83,175.76,19.7000492]
[1729785645933,4.1039,175.83,175.76,19.7000492]
[1729785646133,2.468,175.86,175.79,2.8461]
[1729785646332,2.468,175.86,175.79,4.74]
[1729785646530,2.8455,175.83,175.79,4.74]
[1729785647424,2.8455,175.83,175.79,7.586]
[1729785648434,2.8455,175.83,175.76,19.7000492]
[1729785648435,2.468,175.86,175.77,4.74]
[1729785648635,1.268,175.86,175.76,4.74]
[1729785648831,5.9611,175.85,175.73,19.7000492]
[1729785649041,19.7000492,175.82,175.71,2.8473]
[1729785649333,19.7000492,175.82,175.71,4.74]
[1729785649334,5.9462,175.81,175.71,4.74]
[1729785649529,2.8472,175.73,175.71,4.74]
[1729785649721,5.9462,175.81,175.71,4.74]
[1729785650231,2.8472,175.73,175.71,4.74]
[1729785650536,2.8474,175.71,175.64,19.7000492]
[1729785650735,2.8474,175.71,175.65,4.74]
[1729785650936,2.8474,175.71,175.67,2.848]
[1729785651241,20.8940492,175.76,175.65,4.74]
[1729785651536,20.8940492,175.76,175.65,2.8483]
[1729785651736,20.8940492,175.76,175.61,23.3313492]
[1729785651933,19.7000492,175.73,175.62,4.74]
[1729785652239,19.7000492,175.73,175.63,4.74]
[1729785652440,8.3852,175.84,175.67,19.7000492]
[1729785652626,24.4400492,175.83,175.68,4.74]
[1729785652823,2.8469,175.75,175.7,2.8475]
[1729785655339,2.8469,175.75,175.71,2.8473]
[1729785656538,4.74,175.79,175.68,4.74]
[1729785656725,4.74,175.82,175.7,19.7000492]
[1729785657135,4.74,175.82,175.72,2.8472]
[1729785658033,2.8466,175.76,175.72,2.8472]
[1729785659936,2.8466,175.76,175.7,19.7000492]
[1729785659937,2.8469,175.74,175.7,22.5475492]
[1729785660142,4.74,175.82,175.7,19.7000492]
[1729785660528,4.74,175.82,175.65,1.2591]
[1729785660529,19.7000492,175.8,175.65,20.9591492]
[1729785660736,19.7000492,175.8,175.66,4.74]
[1729785660939,2.8474,175.72,175.67,2.8479]
[1729785661142,2.8474,175.72,175.66,4.74]
[1729785662135,2.8474,175.72,175.68,2.8478]
[1729785665230,2.423,175.77,175.65,19.7000492]
[1729785665430,1.2077,175.76,175.64,4.74]
[1729785665644,2.82883499,175.75,175.64,4.74]
[1729785665838,4.74,175.74,175.64,4.74]
[1729785666033,24.4400492,175.74,175.6,19.7000492]
[1729785666437,2.8484,175.65,175.62,2.8487]
[1729785666952,2.8485,175.64,175.61,7.589]
[1729785667151,2.8485,175.64,175.61,2.849]
[1729785667539,4.74,175.73,175.6,24.4400492]
[1729785667840,4.74,175.74,175.63,19.7000492]
[1729785668044,2.8476,175.71,175.67,2.848]
[1729785668236,2.8476,175.71,175.64,4.74]
[1729785668642,2.8476,175.71,175.66,2.8482]
[1729785668841,1.2077,175.76,175.66,19.7000492]
[1729785669034,2.423,175.77,175.69,19.7000492]
[1729785669239,1.2321,175.8,175.73,2.847]
[1729785669550,1.2321,175.8,175.73,7.587]
[1729785670050,2.8464,175.78,175.73,7.587]
[1729785670344,1.2321,175.8,175.73,7.587]
[1729785670546,2.8465,175.77,175.73,7.587]
[1729785670754,2.8465,175.77,175.73,4.74]
[1729785672242,2.8465,175.77,175.73,7.5871]
[1729785673041,1.1733,175.81,175.73,4.74]
[1729785674349,2.8461,175.79,175.75,2.8467]
[1729785676049,2.8464,175.78,175.74,2.8469]
[1729785676853,2.8462,175.79,175.75,2.8467]
[1729785677043,1.1733,175.81,175.75,2.8467]
[1729785677247,2.8468,175.77,175.73,4.74]
[1729785677550,1.1733,175.81,175.73,4.74]
[1729785678043,2.8466,175.78,175.74,2.847]
[1729785678750,2.8464,175.79,175.76,2.8467]
[1729785679358,2.8466,175.78,175.75,2.847]
[1729785680049,1.2106,175.83,175.73,4.74]
[1729785680050,1.2691,175.85,175.74,19.7000492]
[1729785680362,2.8458,175.83,175.74,20.9558492]
[1729785680652,2.8458,175.83,175.79,2.8463]
[1729785681054,2.8459,175.82,175.79,2.8463]
[1729785681251,2.4156,175.9,175.8,2.8461]
[1729785681458,3.5755,175.9,175.78,4.74]
[1729785681755,3.5755,175.9,175.83,2.8456]
[1729785681756,2.8452,175.87,175.83,2.8456]
[1729785683059,2.8453,175.86,175.82,7.5858]
[1729785686357,3.5755,175.9,175.82,7.5858]
[1729785686554,2.8455,175.85,175.82,7.5858]
[1729785686865,3.5755,175.9,175.81,4.74]
[1729785687163,2.8455,175.85,175.81,4.74]
[1729785687660,3.5755,175.9,175.81,4.74]
[1729785688658,2.845,175.88,175.82,2.8459]
[1729785688860,3.5755,175.9,175.82,2.8459]
[1729785689365,2.8454,175.86,175.82,2.8459]
[1729785689757,3.5755,175.9,175.82,2.8459]
[1729785689955,2.8455,175.85,175.81,7.586]
[1729785690164,3.5755,175.9,175.81,4.74]
[1729785690559,3.5755,175.9,175.74,1.2558]
[1729785690761,19.7000492,175.88,175.75,4.74]
[1729785691059,19.7000492,175.88,175.74,1.2558]
[1729785691060,2.8463,175.8,175.76,7.5868]
[1729785691766,4.74,175.87,175.76,7.5868]
[1729785692160,2.8463,175.8,175.77,2.8467]
[1729785692367,4.74,175.87,175.76,4.74]
[1729785692565,9.2649,175.9,175.76,24.4400492]
[1729785692566,4.74,175.89,175.76,24.4400492]
[1729785692867,4.74,175.89,175.81,2.846]
[1729785693066,4.74,175.89,175.8,4.74]
[1729785693362,2.8452,175.87,175.83,2.8457]
[1729785693563,3.5755,175.9,175.83,2.8457]
[1729785693871,2.8448,175.89,175.82,19.7000492]
[1729785694469,2.8448,175.89,175.85,2.8453]
[1729785694869,1.1913,175.9,175.85,2.8453]
[1729785695166,1.1913,175.9,175.81,4.74]
[1729785695556,1.1913,175.9,175.77,19.7000492]
[1729785695756,4.74,175.89,175.78,4.74]
[1729785695967,19.7000492,175.88,175.78,4.74]
[1729785696281,2.80747992,175.87,175.78,4.74]
[1729785696578,3.98777992,175.87,175.78,4.74]
[1729785696869,2.8459,175.82,175.78,7.5865]
[1729785697569,3.98777992,175.87,175.75,2.847]
[1729785697570,2.8465,175.79,175.75,2.847]
[1729785697771,2.8465,175.79,175.75,7.587]
[1729785697969,2.8465,175.79,175.75,2.847]
[1729785698168,2.8465,175.79,175.75,7.587]
[1729785698869,1.1803,175.87,175.75,4.74]
[1729785699165,2.8456,175.84,175.8,2.8461]
[1729785699365,1.1803,175.87,175.79,4.74]
[1729785699680,1.168,175.88,175.79,24.4400492]
[1729785700172,2.8454,175.86,175.81,2.8459]
[1729785700364,2.8454,175.86,175.79,24.4400492]
[1729785700669,1.168,175.88,175.79,24.4400492]
[1729785701364,1.168,175.88,175.79,4.74]
[1729785701667,1.168,175.88,175.73,19.7000492]
[1729785701668,4.00027026,175.88,175.73,19.7000492]
[1729785701868,2.846,175.82,175.79,2.8463]
[1729785702069,4.74,175.87,175.79,2.8463]
[1729785702364,2.8459,175.83,175.79,2.8463]
[1729785702569,4.74,175.87,175.74,4.74]
[1729785703077,2.8462,175.8,175.76,2.8468]
[1729785703265,4.74,175.87,175.74,4.74]
[1729785703869,2.8462,175.81,175.77,2.8466]
[1729785704272,4.74,175.87,175.77,2.8466]
[1729785704871,1.168,175.88,175.78,4.74]
[1729785705064,1.168,175.88,175.79,4.74]
[1729785706176,2.8457,175.84,175.8,2.8461]
[1729785707069,1.168,175.88,175.79,4.74]
[1729785707471,1.168,175.88,175.81,2.846]
[1729785707668,2.8455,175.85,175.81,2.846]
[1729785708069,2.846,175.82,175.78,2.8465]
[1729785708264,23.71475039,175.88,175.77,4.74]
[1729785708768,23.71475039,175.88,175.78,2.8465]
[1729785709072,23.71475039,175.88,175.77,7.5867]
[1729785709073,2.8463,175.8,175.77,7.5867]
[1729785709275,23.71475039,175.88,175.77,7.5867]
[1729785709475,23.71475039,175.88,175.77,4.74]
[1729785709872,2.8462,175.8,175.77,7.5867]
[1729785710272,23.71475039,175.88,175.77,7.5867]
[1729785710273,23.71475039,175.88,175.77,4.74]
[1729785710573,2.8464,175.79,175.75,4.74]
[1729785711172,1.1569,175.84,175.75,7.5869]
[1729785711374,1.1723,175.83,175.75,7.5869]
[1729785712365,2.8465,175.79,175.75,7.5869]
[1729785713770,2.8465,175.79,175.75,4.74]
[1729785713970,2.8465,175.79,175.76,2.8469]
[1729785714373,2.8461,175.81,175.78,2.8465]
[1729785714569,2.8461,175.81,175.75,4.74]
[1729785714570,1.1726,175.87,175.75,4.74]
[1729785715176,1.1726,175.87,175.76,2.8468]
[1729785715379,1.1726,175.87,175.75,4.74]
[1729785715674,1.1726,175.87,175.77,2.8467]
[1729785716178,2.8462,175.8,175.77,2.8467]
[1729785716976,1.1726,175.87,175.75,4.74]
[1729785717179,2.8462,175.81,175.77,2.8466]
[1729785717769,1.1726,175.87,175.75,4.74]
[1729785717975,1.1726,175.87,175.81,2.846]
[1729785717976,2.8457,175.84,175.81,2.846]
[1729785718176,1.1726,175.87,175.79,4.74]
[1729785718375,1.168,175.88,175.79,4.74]
[1729785718681,1.1667,175.89,175.79,24.4400492]
[1729785719480,2.8452,175.87,175.83,2.8456]
[1729785720475,1.1667,175.89,175.79,24.4400492]
[1729785721084,2.8452,175.87,175.83,2.8456]
[1729785721577,1.1667,175.89,175.79,24.4400492]
[1729785721775,2.845,175.88,175.79,24.4400492]
[1729785722276,2.8451,175.87,175.84,2.8455]
[1729785722479,1.1667,175.89,175.83,4.74]
[1729785722885,2.8451,175.88,175.85,2.8453]
[1729785723083,1.1667,175.89,175.83,4.74]
[1729785724179,19.7000492,175.87,175.78,4.74]
[1729785724378,1.1712,175.86,175.78,4.74]
[1729785724684,1.1712,175.86,175.78,7.5865]
[1729785724878,1.1712,175.86,175.78,4.74]
[1729785725073,2.8455,175.85,175.81,2.8459]
[1729785725381,5.9098,175.88,175.79,19.7000492]
[1729785725585,1.1698,175.88,175.79,19.7000492]
[1729785725787,2.8454,175.86,175.82,2.8458]
[1729785725981,2.8454,175.86,175.82,7.5858]
[1729785726180,1.1698,175.88,175.82,7.5858]
[1729785727186,2.8455,175.85,175.82,7.5858]
[1729785727982,2.8451,175.88,175.85,2.8454]
[1729785728184,17.01178534,175.93,175.83,12.29178534]
[1729785728782,17.01178534,175.93,175.82,4.74]
[1729785728783,12.29178534,175.97,175.87,12.29178534]
[1729785729088,12.29178534,175.97,175.88,4.72]
[1729785729483,2.8443,175.92,175.88,7.5649]
[1729785730291,2.81247691,175.98,175.88,7.5649]
[1729785730292,2.8437,175.96,175.88,4.72]
[1729785730586,1.1913,175.99,175.88,4.72]
[1729785731495,1.1913,175.99,175.88,7.2782]
[1729785731885,22.52538857,176.02,175.88,7.2782]
[1729785731886,2.8433,175.98,175.88,7.2782]
[1729785732190,19.67030898,176.02,175.89,1.1819]
[1729785732388,2.8434,175.98,175.89,1.1819]
[1729785732583,19.67030898,176.02,175.89,1.1819]
[1729785732786,19.67030898,175.98,175.88,1.2774]
[1729785732985,2.8445,175.91,175.87,7.5651]
[1729785733185,19.67030898,175.95,175.87,4.72]
[1729785733382,19.67030898,175.95,175.83,2.4233]
[1729785733587,2.8446,175.9,175.85,2.8453]
[1729785733896,2.8446,175.9,175.84,4.72]
[1729785734090,2.8446,175.9,175.86,2.8451]
[1729785734591,2.8448,175.89,175.86,2.8451]
[1729785734792,22.53648455,175.95,175.86,4.72]
[1729785734992,19.67030898,175.92,175.8,1.2037]
[1729785735193,19.67030898,175.92,175.81,4.72]
[1729785735584,19.67030898,175.92,175.83,2.8457]
[1729785735790,19.67030898,175.9,175.82,4.72]
[1729785735986,19.67030898,175.9,175.79,2.8463]
[1729785735987,1.2073,175.89,175.79,2.8463]
[1729785736190,3.5776,175.89,175.8,4.72]
[1729785736594,2.8457,175.84,175.8,4.72]
[1729785736991,2.8457,175.84,175.74,1.2266]
[1729785736992,4.72,175.83,175.7,19.67030898]
[1729785737185,2.8469,175.76,175.71,4.72]
[1729785737384,2.8469,175.76,175.69,1.2266]
[1729785737385,19.67030898,175.81,175.72,2.8474]
[1729785738290,2.8466,175.78,175.7,7.5677]
[1729785738597,4.72,175.79,175.7,7.5677]
[1729785738986,2.847,175.76,175.71,2.8477]
[1729785739187,4.72,175.79,175.7,4.72]
[1729785739596,2.8467,175.78,175.73,2.8473]
[1729785740192,2.8466,175.78,175.72,2.8475]
[1729785740501,2.8466,175.78,175.7,4.72]
[1729785740999,2.8466,175.78,175.73,2.8472]
[1729785741694,4.72,175.79,175.73,2.8472]
[1729785741904,4.72,175.79,175.7,4.72]
[1729785742205,19.67030898,175.78,175.65,2.4242]
[1729785742393,19.67030898,175.78,175.67,2.8482]
[1729785742595,19.67030898,175.78,175.66,4.72]
[1729785743102,4.72,175.78,175.67,19.67030898]
[1729785743403,2.847,175.75,175.71,2.8475]
[1729785743802,4.72,175.78,175.67,19.67030898]
[1729785744303,2.8471,175.75,175.71,2.8476]
[1729785744496,2.8471,175.75,175.67,19.67030898]
[1729785745298,2.8471,175.75,175.71,2.8475]
[1729785745604,2.4092,175.79,175.7,4.74]
[1729785745804,1.2572,175.8,175.73,2.8473]
[1729785745999,1.2572,175.8,175.7,24.41030898]
[1729785746800,1.2572,175.8,175.68,1.183]
[1729785747103,1.2572,175.8,175.62,1.183]
[1729785747104,19.67030898,175.72,175.62,1.183]
[1729785747306,19.67030898,175.72,175.58,1.1868]
[1729785747608,19.67030898,175.69,175.59,4.74]
[1729785747800,2.8489,175.64,175.6,2.8493]
[1729785748005,19.67030898,175.69,175.59,4.74]
[1729785748198,4.74,175.7,175.59,4.74]
[1729785748397,2.8488,175.65,175.61,2.8493]
[1729785749004,4.74,175.7,175.59,4.74]
[1729785749209,4.74,175.7,175.63,2.8488]
[1729785749708,2.8484,175.67,175.63,2.8488]
[1729785749904,4.74,175.7,175.63,2.8488]
[1729785750408,2.8482,175.68,175.63,2.8488]
[1729785750705,4.74,175.7,175.63,2.8488]
[1729785750909,8.3419,175.71,175.61,2.8492]
[1729785751107,2.8488,175.64,175.61,2.8492]
[1729785751310,2.8488,175.64,175.6,2.8495]
[1729785751506,8.3419,175.71,175.6,2.8495]
[1729785751810,8.3419,175.71,175.59,4.74]
[1729785752113,8.3419,175.71,175.59,7.5896]
[1729785753005,8.3419,175.71,175.59,4.74]
[1729785753206,2.8485,175.66,175.59,4.74]
[1729785753613,8.3419,175.71,175.59,4.74]
[1729785754313,2.849,175.63,175.59,7.5895]
[1729785756406,24.41030898,175.67,175.58,2.8497]
[1729785758309,19.67030898,175.61,175.53,4.74]
[1729785758515,2.4242,175.6,175.53,4.74]
[1729785758706,2.8503,175.55,175.51,2.8509]
[1729785759408,2.8505,175.54,175.51,2.8509]
[1729785760013,2.85,175.57,175.52,2.8507]
[1729785760212,3.6688,175.6,175.52,2.8507]
[1729785760402,3.6688,175.6,175.5,4.74]
[1729785761317,2.4242,175.6,175.5,4.74]
[1729785761504,24.41030898,175.65,175.51,19.67030898]
[1729785761703,24.41030898,175.65,175.51,20.84520898]
[1729785761912,24.41030898,175.65,175.57,2.8499]
[1729785762314,19.67030898,175.63,175.51,4.74]
[1729785762508,1.267,175.62,175.51,4.74]
[1729785762818,2.8498,175.58,175.54,2.8503]
[1729785763018,4.74,175.61,175.54,2.8503]
[1729785763220,1.2629,175.6,175.51,4.74]
[1729785763417,1.2629,175.6,175.53,2.8506]
[1729785763615,20.93320898,175.6,175.53,2.8506]
[1729785765211,2.8497,175.59,175.51,4.74]
[1729785765817,1.2629,175.6,175.51,4.74]
[1729785766409,20.93320898,175.6,175.52,2.8507]
[1729785766613,4.74,175.59,175.52,2.8507]
[1729785766917,6.0105,175.59,175.51,4.74]
[1729785767228,2.8505,175.54,175.51,7.5909]
[1729785768117,2.8504,175.55,175.52,2.8507]
[1729785769123,2.8507,175.53,175.5,2.8511]
[1729785770420,2.8507,175.53,175.51,2.8509]
[1729785771815,6.0105,175.59,175.47,4.74]
[1729785772016,2.8504,175.55,175.47,4.74]
[1729785773118,2.8504,175.54,175.51,2.8508]
[1729785773321,2.8504,175.54,175.47,4.74]
[1729785773521,20.93320898,175.6,175.5,19.67030898]
[1729785773522,1.2629,175.6,175.5,19.67030898]
[1729785773726,1.2629,175.6,175.51,4.74]
[1729785774615,2.8497,175.59,175.56,2.85]
[1729785775716,2.8498,175.58,175.56,2.85]
[1729785775918,1.2629,175.6,175.51,4.74]
[1729785776113,20.93320898,175.6,175.51,4.74]
[1729785776318,4.74,175.59,175.48,24.41030898]
[1729785776720,1.2629,175.6,175.48,24.41030898]
[1729785776721,1.2629,175.6,175.54,2.8504]
[1729785776923,1.2629,175.6,175.48,24.41030898]
[1729785776924,2.8501,175.56,175.48,24.41030898]
[1729785777423,2.85,175.57,175.48,24.41030898]
[1729785777627,1.2629,175.6,175.51,19.67030898]
[1729785778023,2.8499,175.58,175.55,2.8502]
[1729785779527,1.2629,175.6,175.55,2.8502]
[1729785780123,2.85,175.57,175.54,2.8503]
[1729785780423,1.2629,175.6,175.52,4.74]
[1729785780633,2.8502,175.56,175.53,2.8505]
[1729785780934,24.41030898,175.58,175.49,4.74]
[1729785781227,1.2214,175.57,175.49,4.74]
[1729785781623,2.8504,175.55,175.52,2.8507]
[1729785781823,1.2214,175.57,175.49,4.74]
[1729785782325,1.2214,175.57,175.51,2.8508]
[1729785782832,1.2214,175.57,175.45,82.42620898]
[1729785783030,20.89170898,175.57,175.49,2.8511]
[1729785783231,20.89170898,175.57,175.46,4.74]
[1729785783536,2.8505,175.54,175.51,2.8509]
[1729785783827,1.2214,175.57,175.46,4.74]
[1729785784236,1.2214,175.57,175.51,2.8509]
[1729785784734,2.8506,175.54,175.51,2.8509]
[1729785787625,4.74,175.55,175.47,2.8515]
[1729785787828,19.67030898,175.52,175.38,4.74]
[1729785788022,1.2668,175.53,175.3,2.63117785]
[1729785788023,19.67030898,175.48,175.3,2.63117785]
[1729785788331,6.0235,175.47,175.33,19.67030898]
[1729785788535,6.0235,175.47,175.34,1.04832381]
[1729785788729,2.8524,175.43,175.39,2.8527]
[1729785788935,1.2668,175.46,175.33,19.67030898]
[1729785789127,2.8525,175.42,175.33,19.67030898]
[1729785789329,122.0,175.69,175.32,4.74]
[1729785789330,4.74,175.6,175.41,19.67030898]
[1729785789535,1.1724,175.58,175.44,19.67030898]
[1729785789836,4.74,175.57,175.46,19.67030898]
[1729785790230,4.74,175.57,175.49,2.8511]
[1729785790431,1.1724,175.58,175.46,19.67030898]
[1729785790636,1.1724,175.58,175.48,19.67030898]
[1729785791237,2.8502,175.56,175.51,2.8508]
[1729785791537,1.1724,175.58,175.48,19.67030898]
[1729785791738,1.1724,175.58,175.49,4.74]
[1729785792130,1.1724,175.58,175.55,2.8502]
[1729785792440,4.74,175.62,175.49,4.74]
[1729785792738,1.2337,175.59,175.49,4.74]
[1729785792938,2.8501,175.57,175.52,2.8506]
[1729785793136,2.8501,175.57,175.49,4.74]
[1729785793346,1.2337,175.59,175.51,19.67030898]
[1729785794335,2.8501,175.57,175.52,2.8508]
[1729785794533,2.8501,175.57,175.49,4.74]
[1729785795245,2.8501,175.57,175.53,2.8506]
[1729785796843,2.8501,175.57,175.49,4.74]
[1729785796844,1.2337,175.59,175.49,4.74]
[1729785797048,7.1926,175.62,175.51,19.67030898]
[1729785797536,2.8495,175.6,175.51,19.67030898]
[1729785798145,2.8495,175.6,175.53,2.8505]
[1729785798340,2.8495,175.6,175.54,4.74]
[1729785799238,2.4526,175.62,175.56,2.85]
[1729785799942,2.8496,175.6,175.56,2.85]
[1729785801541,2.8496,175.6,175.54,4.74]
[1729785802340,2.8496,175.6,175.56,2.85]
[1729785803450,2.4526,175.62,175.56,2.85]
[1729785803643,2.4526,175.62,175.54,4.74]
[1729785803946,2.4526,175.62,175.55,2.8503]
[1729785804144,2.8498,175.59,175.55,2.8503]
[1729785804446,2.8498,175.59,175.45,4.74]
[1729785804447,19.67030898,175.57,175.45,4.74]
[1729785804647,1.2746,175.56,175.45,4.74]
[1729785804839,2.8507,175.53,175.49,2.8512]
[1729785805143,1.2746,175.56,175.49,2.8512]
[1729785806251,2.8509,175.52,175.49,2.8512]
[1729785807561,19.67030898,175.55,175.46,4.74]
[1729785807760,4.74,175.54,175.46,4.74]
[1729785808056,4.74,175.54,175.47,2.8515]
[1729785808548,2.851,175.51,175.47,2.8515]
[1729785808755,6.0198,175.54,175.47,2.8515]
[1729785809955,2.8512,175.5,175.47,2.8515]
[1729785810151,6.0198,175.54,175.46,2.8517]
[1729785810549,2.8512,175.5,175.43,4.74]
[1729785810851,6.0198,175.54,175.43,4.74]
[1729785811348,1.2154,175.55,175.43,4.74]
[1729785811553,1.1735,175.58,175.48,19.67030898]
[1729785811753,1.1735,175.58,175.49,4.74]
[1729785811943,2.4665,175.62,175.56,2.8501]
[1729785812554,2.8497,175.59,175.56,2.8501]
[1729785812750,2.4665,175.62,175.57,2.8499]
[1729785813653,2.8493,175.61,175.58,2.8498]
[1729785815546,4.0727,175.62,175.58,2.8498]
[1729785815867,1.2235,175.62,175.58,2.8498]
[1729785816158,4.0727,175.62,175.58,2.8498]
[1729785817150,2.849,175.63,175.55,19.67030898]
[1729785817555,5.9135,175.65,175.55,19.67030898]
[1729785817948,1.2104,175.67,175.57,19.67030898]
[1729785818152,1.2104,175.67,175.64,2.8488]
[1729785818458,4.74,175.71,175.6,19.67030898]
[1729785819456,2.848,175.69,175.65,2.8485]
[1729785819947,1.2104,175.72,175.64,4.74]
[1729785820556,2.8481,175.69,175.65,2.8486]
[1729785820759,1.2104,175.72,175.64,4.74]
[1729785821459,2.8484,175.67,175.64,4.74]
[1729785821859,1.2104,175.72,175.64,4.74]
[1729785822554,2.8483,175.68,175.64,7.5888]
[1729785822755,1.2104,175.72,175.62,4.74]
[1729785823062,2.848,175.69,175.62,7.589]
[1729785823263,1.2104,175.72,175.62,7.589]
[1729785823656,19.67030898,175.71,175.59,1.1805]
[1729785823860,4.74,175.7,175.61,4.74]
[1729785824060,2.8486,175.66,175.61,4.74]
[1729785824566,2.8486,175.66,175.62,2.8491]
[1729785825664,2.8482,175.68,175.62,2.8491]
[1729785825867,4.74,175.7,175.62,2.8491]
[1729785826169,4.74,175.7,175.61,4.74]
[1729785826369,2.8488,175.65,175.61,7.5893]
[1729785826556,19.67030898,175.68,175.55,19.67030898]
[1729785826763,19.67030898,175.68,175.56,4.74]
[1729785827063,2.8491,175.63,175.57,4.74]
[1729785827272,19.67030898,175.68,175.57,4.74]
[1729785827662,2.849,175.63,175.59,2.8496]
[1729785828165,2.8493,175.61,175.57,7.5898]